bitfinex/quotes_ETHUSD_20250114
["timestamp","ask_amount","ask_price","bid_price","bid_amount"]
[1736833698080,3.15271,3171.9,3171.8,0.20927627]
[1736833698283,3.15271,3171.9,3171.6,0.827]
[1736833698640,3.15271,3171.9,3171.7,0.20932236]
[1736833698970,3.15271,3171.9,3171.8,0.20927627]
[1736833699171,3.15271,3171.9,3171.6,0.827]
[1736833699373,3.15271,3171.9,3171.7,0.20932236]
[1736833699579,3.15271,3171.9,3171.6,0.827]
[1736833699896,0.7755,3172.1,3171.7,0.20932236]
[1736833700123,3.15274,3171.9,3171.7,0.20932236]
[1736833700420,3.15274,3171.9,3171.8,0.20961655]
[1736833700635,3.15274,3171.9,3171.3,0.827]
[1736833700928,3.15274,3171.9,3171.8,0.20961655]
[1736833701225,0.6322153,3172.2,3171.3,0.827]
[1736833701380,3.7846053,3172.2,3171.8,0.20961655]
[1736833701584,3.7846053,3172.2,3171.5,0.827]
[1736833701776,3.7846053,3172.2,3171.6,0.20973442]
[1736833703524,3.7846053,3172.2,3171.7,0.827]
[1736833703718,3.15239,3172.2,3171.7,0.827]
[1736833704027,3.15239,3172.2,3171.8,0.20964223]
[1736833704329,3.15239,3172.2,3171.7,0.827]
[1736833704477,3.15239,3172.2,3171.9,0.20959614]
[1736833704678,3.15239,3172.2,3171.7,0.827]
[1736833704878,3.15239,3172.2,3172.0,0.21012124]
[1736833705079,3.15239,3172.2,3171.7,0.827]
[1736833705730,3.15239,3172.2,3171.8,0.21018131]
[1736833705895,3.15249,3172.1,3171.8,0.21018131]
[1736833706096,3.15249,3172.1,3171.7,0.827]
[1736833706542,0.62914858,3172.3,3171.8,0.21018131]
[1736833706543,3.78148858,3172.3,3171.8,0.21018131]
[1736833707044,3.15234,3172.3,3171.9,0.21013522]
[1736833707327,3.15234,3172.3,3171.7,0.827]
[1736833707531,3.15234,3172.3,3172.0,0.21008913]
[1736833707820,3.15234,3172.3,3172.1,0.21004305]
[1736833707983,3.15234,3172.3,3171.7,0.827]
[1736833708183,3.15234,3172.3,3171.8,0.21018131]
[1736833708385,3.15234,3172.3,3171.7,0.827]
[1736833708716,3.15234,3172.3,3171.8,0.21018131]
[1736833709215,3.15234,3172.3,3171.9,0.21013522]
[1736833709415,3.15234,3172.3,3171.7,0.827]
[1736833709625,3.15234,3172.3,3172.0,0.21008913]
[1736833709810,3.15234,3172.3,3171.7,0.827]
[1736833709988,3.15234,3172.3,3172.1,0.21004305]
[1736833710190,3.15234,3172.3,3171.7,0.827]
[1736833710393,3.15234,3172.3,3171.8,0.21018131]
[1736833710733,3.15234,3172.3,3171.7,0.827]
[1736833710899,3.15234,3172.3,3171.9,0.21013522]
[1736833711100,3.15234,3172.3,3171.8,0.21018131]
[1736833711414,3.15234,3172.3,3171.9,0.21013522]
[1736833711617,3.15234,3172.3,3171.7,0.827]
[1736833711926,0.62472552,3172.5,3172.0,0.21008913]
[1736833712231,3.15242,3172.2,3172.1,0.21004947]
[1736833712433,3.15242,3172.2,3171.7,0.827]
[1736833712638,3.15242,3172.2,3172.1,0.21004947]
[1736833712852,3.15242,3172.2,3171.7,0.827]
[1736833713012,3.15242,3172.2,3172.1,0.20995959]
[1736833713335,3.15242,3172.2,3171.7,0.827]
[1736833713501,3.15242,3172.2,3172.1,0.20995959]
[1736833713704,3.15242,3172.2,3171.7,0.827]
[1736833714236,3.15242,3172.2,3171.8,0.21009784]
[1736833714441,3.15242,3172.2,3171.7,0.827]
[1736833714740,3.15242,3172.2,3171.9,0.21005176]
[1736833714898,3.15242,3172.2,3171.8,0.21012352]
[1736833715127,3.15242,3172.2,3172.0,0.21003135]
[1736833715468,3.15242,3172.2,3172.1,0.20998527]
[1736833715762,3.15242,3172.2,3171.7,0.827]
[1736833715928,0.62472552,3172.5,3172.1,0.20998527]
[1736833716127,0.62472552,3172.5,3171.7,0.827]
[1736833716128,1.08006407,3172.5,3171.7,0.827]
[1736833716347,3.15236,3172.3,3171.7,0.827]
[1736833716669,3.15236,3172.3,3171.8,0.21012352]
[1736833716851,3.15236,3172.3,3171.7,0.827]
[1736833717060,3.15236,3172.3,3171.9,0.20989126]
[1736833717247,3.15236,3172.3,3171.7,0.827]
[1736833717445,3.15236,3172.3,3172.0,0.2098837]
[1736833717652,3.15236,3172.3,3171.7,0.827]
[1736833717876,3.15236,3172.3,3172.1,0.20983762]
[1736833718151,3.15236,3172.3,3171.7,0.827]
[1736833718339,3.15236,3172.3,3172.2,0.20979154]
[1736833718559,3.15236,3172.3,3171.7,0.827]
[1736833718732,0.62472552,3172.5,3172.2,2.4545735]
[1736833718931,3.15162,3173.0,3172.4,1.43388196]
[1736833719191,3.97372,3173.2,3172.5,0.8109]
[1736833719332,3.15153,3173.1,3172.5,1.02046986]
[1736833720467,3.1513,3173.3,3172.5,1.05198825]
[1736833720665,3.15143,3173.2,3172.5,1.60882162]
[1736833720868,0.8223,3173.4,3172.6,0.8109]
[1736833721177,3.15155,3173.1,3172.6,1.02042379]
[1736833722279,0.64153183,3173.3,3172.6,1.02042379]
[1736833722483,3.15159,3173.0,3172.6,1.02042379]
[1736833722647,3.15159,3173.0,3172.6,0.20952379]
[1736833722843,3.15159,3173.0,3172.4,0.8109]
[1736833723168,3.15159,3173.0,3172.7,0.20947773]
[1736833723373,3.15159,3173.0,3172.4,0.8109]
[1736833723682,3.15183,3172.8,3172.4,0.8109]
[1736833723983,0.8223,3172.9,3172.5,0.20956986]
[1736833723984,3.1519,3172.7,3172.5,0.20956986]
[1736833724463,3.1519,3172.7,3172.0,3.8109]
[1736833724671,3.1519,3172.7,3172.6,0.20952379]
[1736833724871,3.1519,3172.7,3172.1,0.8397412]
[1736833725086,3.1519,3172.7,3172.6,0.20952379]
[1736833725267,3.97402,3172.9,3172.1,0.8397412]
[1736833725449,3.1518,3172.8,3172.6,0.20952379]
[1736833725648,3.1518,3172.8,3172.2,0.8109]
[1736833725848,3.1518,3172.8,3172.7,0.20947773]
[1736833726048,3.1518,3172.8,3172.2,0.8109]
[1736833726248,3.1518,3172.8,3172.7,0.20947773]
[1736833726440,3.1518,3172.8,3172.2,0.8109]
[1736833726768,3.1518,3172.8,3172.7,0.20947773]
[1736833726971,3.1518,3172.8,3172.2,0.8109]
[1736833727161,3.1518,3172.8,3172.7,0.20258189]
[1736833727367,3.1518,3172.8,3172.2,0.8109]
[1736833727552,3.1518,3172.8,3172.7,0.20258189]
[1736833727752,3.1518,3172.8,3172.2,0.8109]
[1736833727947,3.1518,3172.8,3172.7,0.20258189]
[1736833728166,3.1518,3172.8,3172.2,0.8109]
[1736833728482,3.1518,3172.8,3172.7,0.20258189]
[1736833728659,3.1518,3172.8,3172.2,0.8109]
[1736833728849,3.1518,3172.8,3172.7,0.20258189]
[1736833729049,3.1518,3172.8,3172.2,0.8109]
[1736833729262,3.1518,3172.8,3172.7,0.20258189]
[1736833729484,3.1518,3172.8,3172.2,0.8109]
[1736833729686,3.1518,3172.8,3172.7,0.20219676]
[1736833730086,3.1518,3172.8,3172.2,2.073999]
[1736833730262,3.1518,3172.8,3172.7,0.20219676]
[1736833730585,3.1518,3172.8,3172.2,2.073999]
[1736833731056,0.8223,3173.1,3172.3,0.20238103]
[1736833731386,3.15172,3172.9,3172.3,0.20238103]
[1736833731561,3.15172,3172.9,3172.3,0.66053343]
[1736833733184,3.15188,3172.8,3172.3,0.20238103]
[1736833733586,0.8223,3173.1,3172.2,2.073999]
[1736833733784,3.15164,3173.0,3172.4,0.20200761]
[1736833734006,3.15164,3173.0,3172.3,0.20206011]
[1736833734209,3.15164,3173.0,3172.5,0.20196796]
[1736833734514,3.15164,3173.0,3172.6,0.7763]
[1736833734680,3.15164,3173.0,3172.6,0.9782604]
[1736833735311,3.15144,3173.2,3172.6,0.9782604]
[1736833735979,3.15153,3173.1,3172.6,0.9782604]
[1736833736730,1.42933183,3173.3,3172.6,0.9782604]
[1736833736889,3.1516,3173.0,3172.6,0.9782604]
[1736833737094,3.1516,3173.0,3172.6,0.2019604]
[1736833737287,3.1516,3173.0,3172.4,0.7763]
[1736833737984,3.1516,3173.0,3172.5,0.20200647]
[1736833739612,3.15177,3172.9,3172.5,0.20200647]
[1736833740111,0.793,3172.8,3172.5,0.20200647]
[1736833740326,3.15198,3172.6,3172.5,0.20200647]
[1736833740693,3.15198,3172.6,3172.2,1.263099]
[1736833740888,3.15198,3172.6,3172.5,0.20200647]
[1736833741419,3.94488,3172.8,3172.5,0.20200647]
[1736833741713,0.793,3172.8,3172.2,1.263099]
[1736833741918,3.15188,3172.7,3172.6,0.2019604]
[1736833742114,3.15225,3172.4,3171.9,2.092661]
[1736833742300,3.94525,3172.4,3171.9,2.092661]
[1736833742505,3.94525,3172.4,3172.0,0.20258342]
[1736833742714,3.15231,3172.3,3172.0,0.20258342]
[1736833743024,3.15239,3172.2,3172.0,0.20258342]
[1736833743316,3.15239,3172.2,3171.8,1.26327]
[1736833743523,3.15239,3172.2,3172.1,0.20254375]
[1736833743682,3.15239,3172.2,3171.8,1.26327]
[1736833744083,3.15239,3172.2,3171.9,0.20263592]
[1736833745101,3.15248,3172.1,3171.7,2.09267]
[1736833745501,3.15248,3172.1,3171.8,0.20268201]
[1736833745697,3.15261,3172.0,3171.7,0.8294]
[1736833746021,3.15258,3172.0,3171.9,0.20263592]
[1736833746318,3.862376,3172.0,3171.3,2.092879]
[1736833746524,3.15285,3171.8,3171.3,2.092879]
[1736833746728,3.15285,3171.8,3171.4,0.203258]
[1736833747435,0.793,3171.9,3171.4,0.203258]
[1736833747593,3.15306,3171.6,3171.4,0.203258]
[1736833747930,3.15309,3171.5,3171.1,1.263555]
[1736833748120,3.15309,3171.5,3171.1,1.7728505]
[1736833748513,3.15294,3171.7,3171.1,1.7728505]
[1736833750507,3.94574,3171.9,3171.1,1.7728505]
[1736833750708,3.94574,3171.9,3171.2,0.8294]
[1736833750960,3.15281,3171.8,3171.2,0.8294]
[1736833751254,3.15281,3171.8,3171.2,1.08962505]
[1736833751945,3.15281,3171.8,3171.3,0.20347107]
[1736833752341,3.15281,3171.8,3171.2,1.08962505]
[1736833752543,3.79693962,3172.0,3171.4,0.20342497]
[1736833752842,3.79693962,3172.0,3171.5,1.03277887]
[1736833753041,3.1527,3171.9,3171.5,1.03277887]
[1736833754220,3.15278,3171.8,3171.5,1.03277887]
[1736833755909,0.64430962,3172.0,3171.5,1.03277887]
[1736833756110,3.15298,3171.6,3171.5,0.20337887]
[1736833756316,3.15298,3171.6,3171.2,0.8208]
[1736833756565,3.15298,3171.6,3171.5,0.20373838]
[1736833756860,3.15298,3171.6,3171.5,0.20379618]
[1736833757041,3.15298,3171.6,3171.2,0.8208]
[1736833757359,3.15298,3171.6,3171.5,0.20379618]
[1736833757566,3.15298,3171.6,3171.2,0.8208]
[1736833757859,3.15298,3171.6,3171.2,2.084341]
[1736833758059,3.15298,3171.6,3171.3,0.20388838]
[1736833758262,3.15298,3171.6,3171.2,2.084341]
[1736833758558,3.95674,3171.8,3171.4,0.20384228]
[1736833758765,3.95674,3171.8,3171.3,0.20388838]
[1736833758965,3.95674,3171.8,3171.5,0.20379618]
[1736833759172,3.95674,3171.8,3171.4,0.20384228]
[1736833759466,3.1529,3171.7,3171.5,0.20379618]
[1736833759763,3.1529,3171.7,3171.2,2.084341]
[1736833759972,0.8039,3171.8,3171.6,0.20375008]
[1736833760311,0.8039,3171.8,3171.2,2.2927751]
[1736833760577,3.15289,3171.7,3171.2,2.2927751]
[1736833761728,0.015,3172.3,3171.2,2.2927751]
[1736833761729,3.95635,3172.2,3171.4,0.8208]
[1736833762160,4.351985,3172.2,3171.4,0.8208]
[1736833762460,3.95635,3172.2,3171.4,0.8208]
[1736833762666,3.15245,3172.2,3171.4,0.8208]
[1736833763327,3.77188994,3172.2,3171.4,0.8208]
[1736833763527,3.15255,3172.1,3171.4,0.8208]
[1736833765571,3.15263,3172.0,3171.4,0.8208]
[1736833765869,3.15263,3172.0,3171.4,1.36541451]
[1736833766764,3.15263,3172.0,3171.5,0.20379618]
[1736833767174,3.77185994,3172.2,3171.5,0.20379618]
[1736833767471,3.15298,3171.6,3171.5,0.20379618]
[1736833767650,3.15272,3171.9,3171.2,1.263541]
[1736833767868,3.15308,3171.5,3171.1,0.8208]
[1736833768194,0.315272,3171.8,3171.2,0.20392805]
[1736833768195,3.15298,3171.6,3171.2,0.20392805]
[1736833768364,3.15328,3171.3,3171.2,0.20392805]
[1736833768693,3.15328,3171.3,3170.9,0.8208]
[1736833768893,3.15328,3171.3,3171.0,0.20402027]
[1736833773302,3.15338,3171.2,3171.0,0.20402027]
[1736833773608,3.15338,3171.2,3170.9,0.8208]
[1736833773806,3.15338,3171.2,3170.7,2.014158]
[1736833773972,3.15338,3171.2,3171.0,0.20402027]
[1736833774172,3.15338,3171.2,3170.7,2.014158]
[1736833774675,3.15338,3171.2,3170.8,0.2041125]
[1736833775821,0.7971,3171.3,3170.8,0.2041125]
[1736833775997,3.15356,3171.1,3170.8,0.2041125]
[1736833776200,3.15359,3171.0,3170.8,0.2041125]
[1736833776388,3.15359,3171.0,3170.5,0.7506]
[1736833776790,3.15359,3171.0,3170.6,0.20420475]
[1736833778224,0.7971,3170.9,3170.6,0.20420475]
[1736833778628,0.7971,3170.9,3170.2,0.7506]
[1736833778932,0.7971,3170.9,3170.3,0.390505]
[1736833779224,0.7971,3170.9,3170.4,0.20544038]
[1736833781331,0.7971,3170.9,3170.2,0.7506]
[1736833781632,0.7971,3170.9,3170.3,0.20548652]
[1736833782534,3.95078,3170.9,3170.3,0.20548652]
[1736833784758,0.7971,3170.9,3170.3,0.20548652]
[1736833785258,0.48369561,3170.9,3170.3,0.61969518]
[1736833790444,3.63742561,3170.9,3170.3,0.61969518]
[1736833792054,0.48369561,3170.9,3170.3,0.61969518]
[1736833794781,3.63739561,3170.9,3170.3,0.61969518]
[1736833796071,3.63739561,3170.9,3170.3,0.20548652]
[1736833797866,3.15385,3170.8,3170.3,0.20548652]
[1736833798117,3.63746561,3170.9,3170.3,0.20548652]
[1736833798819,0.48369561,3170.9,3170.3,0.20548652]
[1736833799134,3.15379,3170.8,3170.3,0.20548652]
[1736833799336,3.15379,3170.8,3170.2,0.7506]
[1736833799486,3.15379,3170.8,3170.2,1.58462959]
[1736833799689,3.15379,3170.8,3170.3,0.20568573]
[1736833799984,3.15379,3170.8,3170.2,1.58462959]
[1736833800231,3.15379,3170.8,3170.4,0.2056396]
[1736833800433,3.15379,3170.8,3170.3,0.20568573]
[1736833800635,3.15379,3170.8,3170.5,0.20559347]
[1736833800785,3.15379,3170.8,3170.2,1.58462959]
[1736833800786,3.15389,3170.7,3170.4,0.2056396]
[1736833800986,3.63743561,3170.9,3170.6,0.20554735]
[1736833801186,4.31653317,3170.9,3170.5,0.20559347]
[1736833801435,4.31653317,3170.9,3170.7,0.20550123]
[1736833801752,4.31653317,3170.9,3170.8,0.20545511]
[1736833801935,4.31653317,3170.9,3170.2,0.7506]
[1736833802096,0.48369561,3170.9,3170.3,0.20568573]
[1736833802288,3.15386,3170.8,3170.3,0.20568573]
[1736833802483,3.15386,3170.8,3170.2,0.7506]
[1736833802892,3.15386,3170.8,3170.3,0.20568573]
[1736833803113,3.15386,3170.8,3170.2,0.7506]
[1736833803322,0.48369561,3170.9,3170.2,0.7506]
[1736833803520,3.15402,3170.6,3170.2,0.7506]
[1736833804017,3.15402,3170.6,3170.3,0.20582065]
[1736833804538,0.48369561,3170.9,3170.4,0.20577452]
[1736833804847,3.15391,3170.7,3170.2,0.7506]
[1736833805125,3.15391,3170.7,3170.0,0.7812]
[1736833805309,0.7512,3170.5,3170.1,0.20591293]
[1736833805622,3.9053,3170.5,3170.1,0.20591293]
[1736833806198,0.7512,3170.5,3170.1,0.20591293]
[1736833806402,3.90532,3170.5,3170.1,0.20591293]
[1736833806710,3.90532,3170.5,3169.9,5.0723387]
[1736833806914,3.90532,3170.5,3169.7,0.7812]
[1736833806915,3.15428,3170.3,3170.0,0.20601048]
[1736833807111,3.15428,3170.3,3169.7,0.7812]
[1736833807320,3.15428,3170.3,3169.8,0.20617989]
[1736833807530,3.15428,3170.3,3169.7,0.7812]
[1736833807689,3.15428,3170.3,3169.8,0.20617989]
[1736833807890,3.15428,3170.3,3169.7,0.7812]
[1736833808091,1.49350006,3170.5,3169.8,0.20617989]
[1736833808428,3.1544,3170.2,3169.8,0.20617989]
[1736833808622,0.7512,3170.1,3169.8,0.20617989]
[1736833808793,0.7512,3170.1,3169.5,0.7812]
[1736833808993,0.7512,3170.1,3169.9,0.20628158]
[1736833809341,0.7512,3170.1,3170.0,0.20623544]
[1736833809548,0.7512,3170.1,3169.5,0.7812]
[1736833809754,0.7512,3170.1,3169.6,0.20642003]
[1736833810053,3.15459,3170.0,3169.6,0.20642003]
[1736833810746,3.15459,3170.0,3169.2,5.8535387]
[1736833811043,3.15459,3170.0,3169.3,0.20663564]
[1736833811552,3.15473,3169.9,3169.3,0.20663564]
[1736833811767,3.15473,3169.9,3169.4,0.60601743]
[1736833812046,3.15473,3169.9,3169.5,0.20654332]
[1736833812413,3.90574,3170.1,3169.5,0.20654332]
[1736833814144,3.90574,3170.1,3169.3,1.43513592]
[1736833814445,3.90574,3170.1,3169.4,0.20709729]
[1736833815544,3.90574,3170.1,3169.4,0.44944061]
[1736833815949,0.7512,3170.1,3169.4,0.44944061]
[1736833816251,3.15459,3170.0,3169.4,0.44944061]
[1736833816445,3.15459,3170.0,3169.4,0.20709729]
[1736833816744,3.15459,3170.0,3169.2,0.7812]
[1736833816950,3.15459,3170.0,3169.3,0.20714346]
[1736833818061,3.15481,3169.8,3169.3,0.20714346]
[1736833818458,3.15481,3169.8,3169.2,0.7812]
[1736833818641,3.15481,3169.8,3169.4,0.20716802]
[1736833818841,3.470291,3169.8,3169.3,0.20721418]
[1736833819030,0.315481,3169.8,3169.5,0.20712186]
[1736833819230,0.315481,3169.8,3169.2,0.7812]
[1736833819231,2.84148652,3169.6,3169.4,0.20716802]
[1736833819428,2.84148652,3169.6,3169.2,0.7812]
[1736833819834,3.15482,3169.8,3169.2,0.7812]
[1736833821156,3.15512,3169.5,3169.2,0.7812]
[1736833821355,3.15512,3169.5,3168.7,0.8266]
[1736833821527,3.15512,3169.5,3168.8,0.54176559]
[1736833822051,0.8186,3169.7,3168.7,0.8266]
[1736833822957,3.15517,3169.5,3168.7,0.8266]
[1736833824361,3.97354,3169.7,3168.9,0.8266]
[1736833825468,3.15498,3169.6,3168.9,0.8266]
[1736833826966,3.15498,3169.6,3169.0,0.208253]
[1736833828298,3.552338,3169.6,3169.0,0.208253]
[1736833829756,3.15521,3169.4,3169.0,0.208253]
[1736833829935,0.7643,3169.3,3169.0,0.208253]
[1736833830572,3.15521,3169.4,3169.0,0.208253]
[1736833836748,3.15529,3169.3,3169.0,0.208253]
[1736833837480,3.15547,3169.1,3169.0,0.208253]
[1736833837848,3.15547,3169.1,3168.6,0.7645]
[1736833838174,3.15547,3169.1,3168.7,0.2416921]
[1736833838692,3.1557,3168.9,3168.7,0.2416921]
[1736833838872,3.98126,3168.8,3168.7,0.2416921]
[1736833839378,3.15614,3168.5,3168.1,0.005]
[1736833839577,3.98126,3168.8,3168.1,0.005]
[1736833839578,0.0075,3168.6,3168.2,0.24202474]
[1736833839874,6.15636,3168.2,3168.1,0.005]
[1736833840283,6.15636,3168.2,3168.1,0.24718135]
[1736833840495,6.15636,3168.2,3168.1,0.005]
[1736833842651,0.818,3168.5,3168.1,0.005]
[1736833842846,3.15633,3168.3,3168.1,0.005]
[1736833843196,3.15633,3168.3,3168.2,0.24264257]
[1736833843383,3.15633,3168.3,3168.1,0.005]
[1736833843697,3.15633,3168.3,3168.2,0.24264257]
[1736833844069,3.15633,3168.3,3168.1,0.005]
[1736833844396,3.0,3168.6,3168.2,0.24264257]
[1736833844567,3.15617,3168.4,3168.2,0.24264257]
[1736833845465,0.55,3168.3,3168.2,0.24264257]
[1736833846055,0.55,3168.6,3168.2,0.24264257]
[1736833846287,3.70604,3168.6,3168.2,0.24264257]
[1736833847440,3.15613,3168.5,3168.2,0.24264257]
[1736833848412,0.55,3168.4,3168.2,0.24264257]
[1736833848583,0.55,3168.4,3168.1,0.005]
[1736833848584,3.15626,3168.3,3168.1,0.005]
[1736833848900,0.55,3168.4,3168.1,0.005]
[1736833849090,3.70625,3168.4,3168.1,0.005]
[1736833849703,3.70636,3168.2,3168.1,0.005]
[1736833850424,3.1566,3168.0,3167.7,0.7195]
[1736833851319,3.15679,3167.8,3167.4,0.1626024]
[1736833851610,0.818,3168.0,3167.4,0.1626024]
[1736833851811,3.15689,3167.7,3167.4,0.1626024]
[1736833852180,1.3755,3167.6,3167.4,0.1626024]
[1736833852523,3.70706,3167.5,3167.4,0.1626024]
[1736833855615,6.72206,3167.5,3167.4,0.1626024]
[1736833856803,7.54006,3167.5,3167.4,0.1626024]
[1736833858421,7.54756,3167.5,3167.4,0.1626024]
[1736833858715,8.302316,3167.5,3167.4,0.1626024]
[1736833860189,8.438316,3167.5,3167.4,0.1626024]
[1736833861027,8.430816,3167.5,3167.4,0.1626024]
[1736833862057,8.294816,3167.5,3167.4,0.1626024]
[1736833862896,3.15697,3167.6,3167.4,0.1626024]
[1736833863114,3.15706,3167.5,3167.4,0.1626024]
[1736833863316,3.70706,3167.5,3167.4,0.1626024]
[1736833864997,0.55,3167.5,3167.4,0.1626024]
[1736833865508,0.55,3167.5,3167.4,0.39246998]
[1736833865704,3.0,3167.8,3167.4,0.39246998]
[1736833865705,3.15681,3167.8,3167.4,0.39246998]
[1736833866322,0.55,3167.7,3167.4,0.39246998]
[1736833866910,3.29243,3168.2,3167.4,0.39246998]
[1736833866911,0.8281,3168.2,3167.4,0.39246998]
[1736833867110,0.8281,3168.2,3167.5,0.8259]
[1736833867111,3.15645,3168.2,3167.5,0.8259]
[1736833867438,3.15645,3168.2,3167.7,0.8259]
[1736833867796,3.16372,3168.4,3167.7,0.8259]
[1736833868112,3.15639,3168.2,3167.8,0.22967856]
[1736833868320,0.55,3168.1,3167.8,0.22967856]
[1736833868538,0.55,3168.1,3167.7,0.8259]
[1736833868852,0.55,3168.1,3167.8,0.22967856]
[1736833869204,0.55,3168.1,3167.7,0.8259]
[1736833869477,0.55,3168.1,3167.8,0.22967856]
[1736833869938,0.55,3168.1,3167.7,0.8259]
[1736833870139,0.55,3168.1,3167.9,0.22963132]
[1736833870297,0.55,3168.1,3168.0,0.22891698]
[1736833870997,0.55,3168.1,3167.7,0.8259]
[1736833871231,0.55,3168.1,3167.8,0.22901146]
[1736833872035,0.5462004,3168.1,3167.8,0.22901146]
[1736833873821,3.16373,3168.4,3167.8,0.22901146]
[1736833874224,0.55,3168.3,3167.8,0.22901146]
[1736833875754,3.15601,3168.6,3167.8,0.22901146]
[1736833875906,3.15601,3168.6,3167.9,0.42117415]
[1736833876106,0.55,3168.6,3168.0,0.7668]
[1736833876344,0.55,3168.6,3168.0,0.99533215]
[1736833879111,0.55,3168.7,3168.0,0.99533215]
[1736833879313,0.55,3168.5,3168.0,0.99533215]
[1736833879516,3.15627,3168.3,3168.0,0.99533215]
[1736833879922,0.55,3168.2,3168.0,0.22853215]
[1736833880127,3.70637,3168.2,3168.0,0.22853215]
[1736833880318,3.15648,3168.1,3167.8,0.7668]
[1736833880866,3.15648,3168.1,3167.9,0.22856656]
[1736833883642,3.15648,3168.1,3167.6,0.7668]
[1736833883945,3.70648,3168.1,3167.6,0.7668]
[1736833884247,0.55,3168.1,3167.7,0.22868671]
[1736833888163,3.7065,3168.1,3167.7,0.22868671]
[1736833894769,0.55,3168.1,3167.7,0.22868671]
[1736833894965,3.93583,3168.7,3167.8,3.18832757]
[1736833895165,3.93583,3168.7,3167.9,1.35168984]
[1736833895347,0.55,3168.6,3167.9,1.35168984]
[1736833903191,3.70597,3168.6,3167.9,1.35168984]
[1736833903536,3.70597,3168.6,3167.9,1.00998841]
[1736833903773,3.1563,3168.3,3167.9,0.7813]
[1736833904045,3.1563,3168.3,3168.0,0.22819234]
[1736833905295,3.70646,3168.1,3168.0,0.22819234]
[1736833905570,4.155096,3168.1,3168.0,0.22819234]
[1736833905758,4.155096,3168.1,3167.6,0.7813]
[1736833906144,4.155096,3168.1,3167.7,0.22846231]
[1736833906747,3.70676,3167.8,3167.7,0.22846231]
[1736833907167,0.55,3167.7,3167.4,0.1626024]
[1736833909250,3.70657,3168.0,3167.4,0.1626024]
[1736833910943,0.55,3167.8,3167.4,0.1626024]
[1736833913290,3.78131962,3168.1,3167.4,0.1626024]
[1736833913786,0.55,3168.0,3167.4,0.1626024]
[1736833914174,0.55,3168.0,3167.5,0.8006]
[1736833914487,0.55,3168.1,3167.5,0.8006]
[1736833914687,0.55,3168.2,3167.5,1.21264124]
[1736833915075,0.55,3168.1,3167.5,1.21264124]
[1736833915761,0.7695,3168.4,3167.5,1.21264124]
[1736833915967,3.92572,3168.4,3167.6,0.8006]
[1736833916166,3.15628,3168.3,3167.6,0.8006]
[1736833916388,0.7695,3168.9,3168.2,3.15635]
[1736833916683,4.57046982,3169.1,3168.3,0.8006]
[1736833916985,3.0,3168.9,3168.3,1.02916359]
[1736833917563,0.55,3168.8,3168.3,1.02916359]
[1736833917981,0.55,3168.7,3168.3,1.02916359]
[1736833921462,0.55,3168.7,3168.3,0.8006]
[1736833921789,0.55,3168.7,3168.4,0.22003595]
[1736833922095,0.55,3168.7,3168.3,0.8006]
[1736833922299,0.55,3168.7,3168.5,0.21998872]
[1736833922497,0.55,3168.7,3168.4,0.22003595]
[1736833922663,0.55,3168.7,3168.6,0.2199415]
[1736833922867,0.55,3168.9,3168.3,0.8006]
[1736833923068,0.55,3168.9,3168.4,0.22003595]
[1736833923367,0.55,3168.8,3168.5,0.21998872]
[1736833923675,0.55,3168.8,3168.3,0.8006]
[1736833923886,0.55,3168.8,3168.4,0.22003595]
[1736833924286,0.55,3168.8,3168.3,0.8006]
[1736833924491,0.55,3168.8,3168.5,0.21998872]
[1736833924798,0.55,3168.8,3168.6,0.2199415]
[1736833924996,0.55,3168.8,3168.3,0.8006]
[1736833925299,0.55,3168.8,3168.4,0.22003595]
[1736833925723,0.55,3168.8,3168.3,0.8006]
[1736833925866,0.55,3168.8,3168.5,0.21998872]
[1736833926063,0.5575,3169.0,3168.3,0.8006]
[1736833926318,3.15586,3168.7,3168.4,0.22003595]
[1736833926686,3.15586,3168.7,3168.3,0.8006]
[1736833926908,3.15586,3168.7,3168.5,0.21998872]
[1736833927109,3.15586,3168.7,3168.4,0.22003595]
[1736833927330,3.70586,3168.7,3168.6,0.2199415]
[1736833927525,3.70586,3168.7,3168.5,0.21998872]
[1736833927826,0.55,3168.7,3168.3,0.8006]
[1736833928171,0.55,3168.7,3168.4,0.22003595]
[1736833928375,0.55,3168.7,3168.3,0.8006]
[1736833928572,0.55,3168.7,3168.4,0.22003595]
[1736833928822,0.55,3168.7,3168.3,0.8006]
[1736833928976,0.55,3168.7,3168.4,0.22003595]
[1736833929170,0.55,3168.7,3168.3,0.8006]
[1736833929368,0.55,3168.7,3168.4,0.21258023]
[1736833929570,0.55,3168.7,3168.3,0.8006]
[1736833929824,0.55,3168.7,3168.4,0.21253569]
[1736833930006,0.55,3168.7,3168.3,0.8006]
[1736833930224,0.55,3168.7,3168.4,0.21253569]
[1736833930518,1.41498982,3169.1,3168.3,0.8006]
[1736833930700,3.15543,3169.2,3168.5,0.97128846]
[1736833931003,3.15543,3169.2,3168.6,0.21239033]
[1736833931207,3.15565,3169.0,3168.6,0.21239033]
[1736833933503,0.55,3168.9,3168.6,0.21239033]
[1736833936907,3.70568,3168.9,3168.6,0.21239033]
[1736833937319,4.158698,3168.9,3168.6,0.21239033]
[1736833937686,4.158698,3168.9,3168.3,0.804]
[1736833937894,0.55,3168.7,3168.4,0.21248478]
[1736833938303,0.55,3168.7,3168.1,0.804]
[1736833938304,0.55,3168.6,3168.1,0.804]
[1736833938587,0.55,3168.6,3168.2,0.21259197]
[1736833959813,0.55,3168.8,3168.2,0.21259197]
[1736833960150,3.15542,3169.2,3168.5,1.43745204]
[1736833960454,3.0,3169.3,3168.6,0.7671]
[1736833960627,3.15521,3169.4,3168.7,0.7671]
[1736833960823,3.15502,3169.6,3168.8,0.7671]
[1736833961148,3.79551286,3169.6,3168.9,2.20455204]